[Event "5th Cesme Open 2017"]
[Site "Cesme"]
[Date "2017.06.15"]
[Round "6.22"]
[White "Rahmani, Jamshid"]
[Black "Tokat, Nehir"]
[Result "0-1"]
[ECO "A48"]
[WhiteElo "1692"]
[BlackElo "1493"]
[Annotator "NA RC"]
[PlyCount "210"]
[EventType "swiss"]
[EventCountry "TUR"]
[SourceTitle "playchess.com"]
[Source "ChessBase"]
[SourceQuality "1"]
[TimeControl "5400+30"]

1. d4 Nf6 2. Nf3 g6 3. Bg5 Bg7 4. e3 d6 {[%emt 0:01:30]} 5. Bd3 {[%emt 0:01:30]} O-O {[%emt 0:00:00]} 6. O-O {[%emt 0:00:30]} c5 {[%emt 0:00:00]} 7. c3 {[%emt 0:00:30]} h6 {[%emt 0:00:30]} 8. Bh4 {[%emt 0:00:30]} Qb6 {[%emt 0:01:30]} 9. Qb3 {[%emt 0:01:30]} Nc6 {[%emt 0:00:00]} 10. Nbd2 {[%emt 0:01:30]} Be6 {[%emt 0:00:00]} 11. Qc2 {[%emt 0:04:30]} cxd4 {[%emt 0:00:30]} 12. exd4 {[%emt 0:00:30]} Rac8 {[%emt 0:00:30]} 13. Qb1 {[%emt 0:08:30]} Nh5 {[%emt 0:05:30]} 14. Re1 {[%emt 0:01:30]} g5 {[%emt 0:06:30]} 15. Bg3 {[%emt 0:08:30]} Bg4 {[%emt 0:03:30]} 16. d5 {[%emt 0:03:30]} Nxg3 {[%emt 0:04:30]} 17. dxc6 {[%emt 0:01:30]} Nh5 {[%emt 0:01:30]} 18. Rxe7 {[%emt 0:02:30]} bxc6 {[%emt 0:04:30]} 19. Qc2 {[%emt 0:04:30]} Bf6 {[%emt 0:06:30]} 20. Re4 {[%emt 0:05:30]} Bd7 {[%emt 0:01:30]} 21. Rae1 {[%emt 0:03:30]} c5 {[%emt 0:02:30]} 22. R4e3 {[%emt 0:05:30]} g4 {[%emt 0:09:30]} 23. Nc4 {[%emt 0:02:30]} Qc7 {[%emt 0:04:30]} 24. Nfd2 {[%emt 0:03:30]} Bg5 {[%emt 0:02:30]} 25. R3e2 {[%emt 0:05:30]} d5 {[%emt 0:18:30]} 26. Ne5 {[%emt 0:05:30]} Nf4 {[%emt 0:01:30]} 27. Nxd7 {[%emt 0:06:30]} Nxe2+ {[%emt 0:00:30]} 28. Rxe2 {[%emt 0:00:30]} Qxd7 {[%emt 0:00:30]} 29. Bf5 {[%emt 0:00:30]} Qb5 {[%emt 0:01:30]} 30. c4 {[%emt 0:01:30]} dxc4 {[%emt 0:00:30]} 31. Bxc8 {[%emt 0:00:30]} c3 {[%emt 0:01:30]} 32. Bxg4 {[%emt 0:00:30]} cxd2 {[%emt 0:00:30]} 33. Rxd2 {[%emt 0:06:54]} Bxd2 {[%emt 0:00:30]} 34. Qxd2 {[%emt 0:00:31]} Qb4 {[%emt 0:00:30]} 35. Qe2 {[%emt 0:00:30]} Qf4 {[%emt 0:03:30]} 36. g3 {[%emt 0:00:21]} Qd4 {[%emt 0:01:30]} 37. Bf5 {[%emt 0:02:51]} Rd8 {[%emt 0:01:39]} 38. Bc2 {[%emt 0:00:52]} a5 {[%emt 0:10:32]} 39. Qh5 {[%emt 0:01:19]} Qf6 {[%emt 0:05:32]} 40. Qxc5 {[%emt 0:01:21]} Rd2 {[%emt 0:01:07]} 41. a3 {[%emt 0:01:26]} Rd6 {[%emt 0:02:48]} 42. b4 {[%emt 0:01:36]} Rc6 {[%emt 0:00:38]} 43. Qf5 {[%emt 0:00:49]} Qxf5 {[%emt 0:00:10]} 44. Bxf5 {[%emt 0:00:02]} axb4 {[%emt 0:00:07]} 45. axb4 {[%emt 0:00:47]} Rb6 {[%emt 0:00:05]} 46. h4 {[%emt 0:02:20]} Rxb4 {[%emt 0:00:14]} 47. Kg2 {[%emt 0:00:16]} Kg7 {[%emt 0:00:21]} 48. f4 {[%emt 0:02:23]} h5 {[%emt 0:01:22]} 49. Kf3 {[%emt 0:01:41]} Rb3+ {[%emt 0:00:10]} 50. Kf2 {[%emt 0:00:20]} Kf6 {[%emt 0:00:47]} 51. Bd7 {[%emt 0:00:22]} Rd3 {[%emt 0:00:45]} 52. Bb5 {[%emt 0:00:20]} Rd5 {[%emt 0:00:39]} 53. Bc6 {[%emt 0:01:05]} Ra5 {[%emt 0:00:52]} 54. Kf3 {[%emt 0:01:33]} Ra3+ {[%emt 0:00:22]} 55. Kf2 {[%emt 0:00:13]} Ra2+ {[%emt 0:00:29]} 56. Kf3 {[%emt 0:00:05]} Rc2 {[%emt 0:00:31]} 57. Be4 {[%emt 0:00:33]} Rc3+ {[%emt 0:00:15]} 58. Kf2 {[%emt 0:00:28]} Ra3 {[%emt 0:00:44]} 59. Bd5 {[%emt 0:00:12]} Ke7 {[%emt 0:00:43]} 60. Kg2 {[%emt 0:00:39]} f6 {[%emt 0:00:32]} 61. Bf3 {[%emt 0:00:37]} Ra5 {[%emt 0:00:28]} 62. Kf2 {[%emt 0:01:13]} Ke6 {[%emt 0:00:28]} 63. Ke3 {[%emt 0:00:31]} Ra3+ {[%emt 0:00:07]} 64. Kf2 {[%emt 0:00:30]} Ra5 {[%emt 0:00:18]} 65. Bc6 {[%emt 0:00:21]} Kd6 {[%emt 0:00:23]} 66. Be8 {[%emt 0:00:24]} Rc5 {[%emt 0:00:40]} 67. Bg6 {[%emt 0:00:30]} Ra5 {[%emt 0:00:56]} 68. Bf7 {[%emt 0:00:44]} Ke7 {[%emt 0:00:28]} 69. Bg6 {[%emt 0:00:34]} Ke6 {[%emt 0:00:25]} 70. Kf3 {[%emt 0:00:27]} Ra3+ {[%emt 0:00:12]} 71. Kg2 {[%emt 0:00:03]} Ra5 {[%emt 0:00:16]} 72. Kh3 {[%emt 0:01:32]} Kd6 {[%emt 0:00:42]} 73. Bf7 {[%emt 0:01:04]} Ke7 {[%emt 0:00:12]} 74. Bc4 {[%emt 0:00:16]} Kd6 {[%emt 0:00:43]} 75. Be2 {[%emt 0:00:13]} Ke6 {[%emt 0:00:29]} 76. Bf3 {[%emt 0:00:15]} Kd6 {[%emt 0:00:19]} 77. Kg2 {[%emt 0:00:21]} Ra2+ {[%emt 0:00:16]} 78. Kf1 {[%emt 0:00:09]} Ra5 {[%emt 0:00:29]} 79. Ke2 {[%emt 0:00:28]} Ke6 {[%emt 0:00:10]} 80. Be4 {[%emt 0:00:27]} Ra2+ {[%emt 0:00:29]} 81. Ke3 {[%emt 0:00:12]} Ra3+ {[%emt 0:00:17]} 82. Kf2 {[%emt 0:00:48]} Ra2+ {[%emt 0:00:08]} 83. Kf3 {[%emt 0:00:12]} Ra3+ {[%emt 0:00:05]} 84. Kg2 {[%emt 0:00:10]} Ra5 {[%emt 0:00:12]} 85. Bc6 {[%emt 0:00:22]} Kf5 {[%emt 0:00:39]} 86. Bf3 {[%emt 0:00:57]} Ke6 {[%emt 0:00:11]} 87. g4 {[%emt 0:00:21]} hxg4 {[%emt 0:00:26]} 88. Bxg4+ {[%emt 0:00:02]} f5 {[%emt 0:00:38]} 89. Bf3 {[%emt 0:00:17]} Kf6 {[%emt 0:00:42]} 90. h5 {[%emt 0:00:25]} Kg7 {[%emt 0:00:41]} 91. Bc6 {[%emt 0:00:29]} Kf8 {[%emt 0:01:48]} 92. Kg3 {[%emt 0:00:21]} Rc5 {[%emt 0:00:44]} 93. Bd7 {[%emt 0:00:19]} Kg7 {[%emt 0:00:40]} 94. Be8 {[%emt 0:00:19]} Kh6 {[%emt 0:00:11]} 95. Kf3 {[%emt 0:00:54]} Ra5 {[%emt 0:00:24]} 96. Ke3 {[%emt 0:00:26]} Rc5 {[%emt 0:00:44]} 97. Kd4 {[%emt 0:00:17]} Ra5 {[%emt 0:00:20]} 98. Kc4 {[%emt 0:00:37]} Ra1 {[%emt 0:00:54]} 99. Bg6 {[%emt 0:03:39]} Ra4+ {[%emt 0:00:27]} 100. Kd5 {[%emt 0:00:08]} Rxf4 {[%emt 0:00:23]} 101. Ke5 {[%emt 0:00:34]} Kg5 {[%emt 0:00:51]} 102. Ke6 {[%emt 0:01:00]} Rf1 {[%emt 0:00:58]} 103. Kf7 {[%emt 0:00:23]} Rh1 {[%emt 0:00:27]} 104. Kg7 {[%emt 0:00:41]} Rxh5 {[%emt 0:00:14]} 105. Kf7 {[%emt 0:00:46]} Rh6 {[%emt 0:00:20]} 0-1

[Event "5th Cesme Open 2017"]
[Site "Cesme"]
[Date "2017.06.15"]
[Round "6.23"]
[White "Ulas, Uygar"]
[Black "Oymanli, Veli"]
[Result "1/2-1/2"]
[ECO "A11"]
[WhiteElo "1518"]
[BlackElo "1526"]
[Annotator "NA RC"]
[PlyCount "121"]
[EventType "swiss"]
[EventCountry "TUR"]
[SourceTitle "playchess.com"]
[Source "ChessBase"]
[SourceQuality "1"]
[TimeControl "5400+30"]

1. c4 {[%emt 1:30:30]} g6 {[%emt 1:31:00]} 2. g3 {[%emt 0:00:00]} Bg7 {[%emt 0:00:00]} 3. Bg2 {[%emt 0:00:00]} c6 {[%emt 0:00:00]} 4. Nc3 {[%emt 0:00:00]} e6 {[%emt 0:00:00]} 5. Nf3 {[%emt 0:00:00]} d5 {[%emt 0:00:00]} 6. d4 {[%emt 0:00:00]} Ne7 {[%emt 0:00:00]} 7. c5 {[%emt 0:00:00]} O-O {[%emt 0:00:00]} 8. O-O {[%emt 0:00:00]} Nd7 {[%emt 0:00:00]} 9. Bf4 {[%emt 0:00:00]} f6 {[%emt 0:00:00]} 10. Bd6 {[%emt 0:00:00]} Rf7 {[%emt 0:00:00]} 11. Bh3 {[%emt 0:00:00]} Nf8 {[%emt 0:00:00]} 12. e4 {[%emt 0:00:00]} Bd7 {[%emt 0:00:00]} 13. e5 {[%emt 0:00:00]} h6 {[%emt 0:00:00]} 14. Ne2 {[%emt 0:00:00]} f5 {[%emt 0:00:00]} 15. Nd2 {[%emt 0:00:00]} g5 {[%emt 0:00:00]} 16. f4 {[%emt 0:00:00]} g4 {[%emt 0:00:00]} 17. Bg2 {[%emt 0:00:00]} h5 {[%emt 0:00:00]} 18. h3 {[%emt 0:00:00]} Neg6 {[%emt 0:00:00]} 19. Qb3 {[%emt 0:00:00]} Bc8 {[%emt 0:00:00]} 20. Kf2 {[%emt 0:00:00]} b5 {[%emt 0:00:00]} 21. cxb6 {[%emt 0:00:00]} axb6 {[%emt 0:00:00]} 22. Rh1 {[%emt 0:00:00]} Ra5 {[%emt 0:00:00]} 23. hxg4 {[%emt 0:00:00]} hxg4 {[%emt 0:00:00]} 24. Rac1 {[%emt 0:00:00]} Bb7 {[%emt 0:00:00]} 25. Rh5 {[%emt 0:00:00]} Rb5 {[%emt 0:00:00]} 26. Qe3 {[%emt 0:00:00]} Rxb2 {[%emt 0:00:00]} 27. Nc3 {[%emt 0:00:00]} Qa8 {[%emt 0:00:00]} 28. a4 {[%emt 0:00:00]} Qa5 {[%emt 0:00:00]} 29. Ba3 {[%emt 0:00:00]} Rxd2+ {[%emt 0:00:00]} 30. Qxd2 {[%emt 0:00:00]} c5 {[%emt 0:00:00]} 31. Rb1 {[%emt 0:00:00]} Bc6 {[%emt 0:00:00]} 32. Qe3 {[%emt 0:00:19]} c4 {[%emt 0:00:00]} 33. Bb4 {[%emt 0:00:56]} Qa6 {[%emt 0:00:00]} 34. a5 {[%emt 0:02:33]} Rb7 {[%emt 0:00:00]} 35. Bxf8 {[%emt 0:05:30]} Nxf8 {[%emt 0:00:00]} 36. Bxd5 {[%emt 0:00:13]} Bxd5 {[%emt 0:00:00]} 37. Nxd5 {[%emt 0:00:05]} exd5 {[%emt 0:00:00]} 38. Rxf5 {[%emt 0:00:05]} Qxa5 {[%emt 0:00:00]} 39. Re1 {[%emt 0:01:24]} Qa2+ {[%emt 0:00:00]} 40. Re2 {[%emt 0:00:07]} Qb1 {[%emt 0:00:00]} 41. Rg5 {[%emt 0:01:03]} Ra7 {[%emt 0:00:00]} 42. e6 {[%emt 0:00:30]} Ra1 {[%emt 0:10:15]} 43. Rxg7+ {[%emt 0:04:00]} Kxg7 {[%emt 0:01:10]} 44. Qe5+ {[%emt 0:00:06]} Kg8 {[%emt 0:00:58]} 45. Qg5+ {[%emt 0:00:45]} Kh8 {[%emt 0:01:45]} 46. Qf6+ {[%emt 0:00:59]} Kg8 {[%emt 0:01:21]} 47. Qf7+ {[%emt 0:00:05]} Kh8 {[%emt 0:00:26]} 48. Qxf8+ {[%emt 0:00:37]} Kh7 {[%emt 0:00:01]} 49. Qf7+ {[%emt 0:00:38]} Kh6 {[%emt 0:00:39]} 50. Qf6+ {[%emt 0:00:48]} Kh7 {[%emt 0:01:04]} 51. Qh4+ {[%emt 0:00:12]} Kg7 {[%emt 0:00:18]} 52. Qxg4+ {[%emt 0:00:07]} Kh7 {[%emt 0:02:01]} 53. Qh5+ {[%emt 0:03:10]} Kg7 {[%emt 0:00:09]} 54. Qf7+ {[%emt 0:00:01]} Kh6 {[%emt 0:00:21]} 55. Qf6+ {[%emt 0:01:03]} Kh7 {[%emt 0:00:10]} 56. Qh4+ {[%emt 0:01:37]} Kg7 {[%emt 0:00:02]} 57. Qg5+ {[%emt 0:00:32]} Kh7 {[%emt 0:00:25]} 58. Qh4+ {[%emt 0:00:32]} Kg7 {[%emt 0:00:01]} 59. Qg4+ {[%emt 0:00:29]} Kh7 {[%emt 0:00:26]} 60. Qh4+ {[%emt 0:00:31]} Kg7 {[%emt 0:00:03]} 61. Qh7+ {[%emt 0:00:43]} 1/2-1/2

[Event "5th Cesme Open 2017"]
[Site "Cesme"]
[Date "2017.06.15"]
[Round "6.24"]
[White "Vatansever, Samet"]
[Black "Kuyucuogullari, Cagakan"]
[Result "0-1"]
[ECO "D46"]
[WhiteElo "1432"]
[BlackElo "1505"]
[Annotator "NA RC"]
[PlyCount "132"]
[EventType "swiss"]
[EventCountry "TUR"]
[SourceTitle "playchess.com"]
[Source "ChessBase"]
[SourceQuality "1"]
[TimeControl "5400+30"]

1. d4 Nf6 2. Nf3 d5 3. c4 e6 {[%emt 0:02:00]} 4. Nc3 {[%emt 0:01:00]} c6 {[%emt 0:00:30]} 5. e3 {[%emt 0:00:00]} Nbd7 {[%emt 0:00:30]} 6. Bd3 {[%emt 0:00:00]} Be7 {[%emt 0:07:30]} 7. O-O {[%emt 0:00:30]} O-O {[%emt 0:00:30]} 8. Qc2 {[%emt 0:00:30]} Re8 {[%emt 0:01:30]} 9. cxd5 {[%emt 0:01:30]} exd5 {[%emt 0:02:30]} 10. Rb1 {[%emt 0:01:30]} a5 {[%emt 0:08:30]} 11. Bd2 {[%emt 0:01:30]} Bf8 {[%emt 0:04:30]} 12. a3 {[%emt 0:01:30]} g6 {[%emt 0:03:30]} 13. b4 {[%emt 0:01:30]} axb4 {[%emt 0:00:30]} 14. axb4 {[%emt 0:00:30]} Qe7 {[%emt 0:06:30]} 15. b5 {[%emt 0:02:30]} c5 {[%emt 0:00:30]} 16. dxc5 {[%emt 0:01:30]} Nxc5 {[%emt 0:00:30]} 17. Nd4 {[%emt 0:04:30]} Bd7 {[%emt 0:09:30]} 18. Be2 {[%emt 0:02:30]} Rec8 {[%emt 0:03:30]} 19. Qd1 {[%emt 0:01:30]} Ra3 {[%emt 0:07:30]} 20. Bf3 {[%emt 0:02:30]} Qe5 {[%emt 0:00:30]} 21. Nce2 {[%emt 0:01:30]} Bd6 {[%emt 0:04:30]} 22. g3 {[%emt 0:00:30]} Nd3 {[%emt 0:05:30]} 23. Rb3 {[%emt 0:01:30]} Rxb3 {[%emt 0:04:30]} 24. Qxb3 {[%emt 0:00:30]} Nc5 {[%emt 0:00:30]} 25. Qb2 {[%emt 0:01:30]} Nce4 {[%emt 0:01:30]} 26. Bb4 {[%emt 0:00:30]} Ng5 {[%emt 0:04:30]} 27. Bg2 {[%emt 0:04:30]} Bxb4 {[%emt 0:02:41]} 28. Qxb4 {[%emt 0:00:00]} Nh3+ {[%emt 0:01:29]} 29. Bxh3 {[%emt 0:03:00]} Bxh3 {[%emt 0:00:06]} 30. Re1 {[%emt 0:00:30]} Rc4 {[%emt 0:06:15]} 31. Qb1 {[%emt 0:01:30]} g5 {[%emt 0:03:35]} 32. Nf3 {[%emt 0:03:30]} Qe4 {[%emt 0:05:24]} 33. Qxe4 {[%emt 0:00:00]} Nxe4 {[%emt 0:00:01]} 34. Ned4 {[%emt 0:00:00]} f6 {[%emt 0:00:58]} 35. Rd1 {[%emt 0:01:30]} Rb4 {[%emt 0:01:06]} 36. Ne1 {[%emt 0:00:30]} Nc3 {[%emt 0:01:18]} 37. Ra1 {[%emt 0:01:30]} Rb2 {[%emt 0:03:08]} 38. Nd3 {[%emt 0:02:30]} Rd2 {[%emt 0:00:05]} 39. Nb4 {[%emt 0:00:30]} Ne4 {[%emt 0:01:36]} 40. Rf1 {[%emt 0:05:30]} Nxf2 {[%emt 0:00:12]} 41. Nf3 {[%emt 0:02:30]} Rb2 {[%emt 0:00:08]} 42. Nxd5 {[%emt 0:00:30]} Ng4 {[%emt 0:00:46]} 43. Ne7+ {[%emt 0:03:30]} Kh8 {[%emt 0:00:46]} 44. Rd1 {[%emt 0:02:30]} Rg2+ {[%emt 0:00:10]} 45. Kf1 {[%emt 0:00:30]} Rf2+ {[%emt 0:00:21]} 46. Ke1 {[%emt 0:00:30]} Rxf3 {[%emt 0:01:11]} 47. Rd8+ {[%emt 0:00:30]} Kg7 {[%emt 0:00:06]} 48. Rd7 {[%emt 0:00:30]} Rxe3+ {[%emt 0:01:00]} 49. Kd2 {[%emt 0:00:30]} Kf8 {[%emt 0:00:10]} 50. Nf5 {[%emt 0:01:30]} Re5 {[%emt 0:00:17]} 51. Rd8+ {[%emt 0:01:30]} Kf7 {[%emt 0:01:02]} 52. Nd6+ {[%emt 0:00:30]} Ke7 {[%emt 0:00:17]} 53. Nxb7 {[%emt 0:00:30]} Rxb5 {[%emt 0:00:22]} 54. Rh8 {[%emt 0:00:30]} Bg2 {[%emt 0:00:55]} 55. Rxh7+ {[%emt 0:00:00]} Ke6 {[%emt 0:00:24]} 56. Nd8+ {[%emt 0:00:00]} Kf5 {[%emt 0:00:13]} 57. Nf7 {[%emt 0:00:30]} Rd5+ {[%emt 0:00:09]} 58. Ke2 {[%emt 0:00:30]} Kg6 {[%emt 0:00:46]} 59. Nxg5 {[%emt 0:00:30]} Kxg5 {[%emt 0:00:55]} 60. Rg7+ {[%emt 0:01:30]} Kf5 {[%emt 0:00:08]} 61. Rh7 {[%emt 0:00:30]} Ke4 {[%emt 0:00:57]} 62. Re7+ {[%emt 0:00:30]} Ne5 {[%emt 0:00:15]} 63. h4 {[%emt 0:00:30]} Bf3+ {[%emt 0:00:21]} 64. Ke1 {[%emt 0:00:30]} Ke3 {[%emt 0:00:27]} 65. Rxe5+ {[%emt 0:00:30]} fxe5 {[%emt 0:00:08]} 66. Kf1 {[%emt 0:00:30]} Rd1# {[%emt 0:00:00]} 0-1

[Event "5th Cesme Open 2017"]
[Site "Cesme"]
[Date "2017.06.18"]
[Round "9.9"]
[White "Morchiashvili, Bachana"]
[Black "Guseynov, Alihan"]
[Result "1/2-1/2"]
[ECO "E11"]
[WhiteElo "2403"]
[BlackElo "2346"]
[Annotator "ChessBase"]
[PlyCount "91"]
[EventType "swiss"]
[EventCountry "TUR"]
[SourceTitle "playchess.com"]
[Source "ChessBase"]
[SourceQuality "1"]
[TimeControl "5400+30"]

1. d4 Nf6 2. Nf3 e6 3. c4 Bb4+ 4. Nbd2 O-O 5. a3 Be7 6. e4 d6 {[%emt 0:04:30] ]15]} 7. h3 {[%emt 0:12:30] ]15]]} c5 {[%emt 0:07:30] ]15]]} 8. d5 {[%emt 0:04:30] ]15]} b5 {[%emt 0:07:30] ]1]5} 9. dxe6 {[%emt 0:00:30] ]11]} fxe6 {[%emt 0:04:30] ]11]} 10. cxb5 {[%emt 0:01:30] ]111} d5 {[%emt 0:02:30] ]111} 11. Bd3 {[%emt 0:04:30] ]]11} a6 {[%emt 0:12:30] ]]111 [%clk 0:01:59]} 12. bxa6 {[%emt 0:01:30] ]]111 [%clk 0:00:09]} Bxa6 {[%emt 0:09:30] ]]]1 [%clk 0:01:59]} 13. Bxa6 {[%emt 0:00:30] ]]]11 [%clk 0:00:09]} Nxa6 {[%emt 0:00:30] ]]]11 [%clk 0:01:59]} 14. Qe2 {[%emt 0:06:30] [%clk 1:04]1::5 [%clk 0:00:09]} Nxe4 {[%emt 0:12:30] %[clkk [%clk 0:01:59]} 15. Nxe4 {[%emt 0:02:30] %[cl [%clk 0:17:17] 0[l [%clk 0:00:09]} dxe4 {[%emt 0:00:30] %[c [%clk 0:11:52] ][0 [%clk 0:01:59]} 16. Qxe4 {[%emt 0:02:30] ]%[ [%clk 0:16:54] ][ [%clk 0:00:09]} Qd5 {[%emt 0:00:30] ]%[ [%clk 0:11:52]] [%clk 0:01:59]} 17. Qe2 {[%emt 0:02:30] [%clk 0:59] [%clk 0:16:54] %%15 [%clk 0:00:09]} Nb4 {[%emt 0:10:30] %[c [%clk 0:11:52] 0666 [%clk 0:01:59]} 18. O-O {[%emt 0:01:30] %[c [%clk 0:16:54] 006 [%clk 0:00:09]} Nd3 {[%emt 0:00:30] %[ [%clk 0:11:52]]0 [%clk 0:01:59]} 19. Rd1 {[%emt 0:04:30] %% [%clk 0:16:54]]] [%clk 0:00:09]} Nxc1 {[%emt 0:00:30] %% [%clk 0:11:52]]] [%clk 0:01:59]} 20. Raxc1 {[%emt 0:00:00] %% [%clk 0:16:54]]] [%clk 0:00:09]} Qf5 {[%emt 0:00:30] [%clk 0:26] [%clk 0:11:52] %%15 [%clk 0:01:59]} 21. Nd2 {[%emt 0:09:00] % [%clk 0:46:0] % [%clk 0:16:54] Bf6 ([%clk 0:24:0] [%clk 0:11.52] [[ [%clk 0:13:23] lk [%clk 0:00:09]} Bf6 {[%emt 0:00:00] [%clk 0:16.54]% [%clk 0:11:31] Bf [%clk 0:01:59]} 22. Ne4 {[%emt 0:33:07] c [%clk 0:00:09]} Bd4 {[%emt 0:15:29] c [%clk 0:01:59]} 23. Rc2 {[%emt 0:00:30] c [%clk 0:00:09]} Qe5 {[%emt 0:00:30] c [%clk 0:01:59]} 24. Kh1 {[%emt 0:00:30] c [%clk 0:00:09]} Rab8 {[%emt 0:00:30] [%clk 0:01.59]} 25. Rdd2 {[%emt 0:00:30] ] [%clk 0:00:40]} Rfc8 {[%emt 0:00:30] ] [%clk 0:01:59]} 26. f3 {[%emt 0:00:30] [%clk 0:00.40]} Rb3 {[%emt 0:00:30] ] [%clk 0:01:59]} 27. f4 {[%emt 0:02:43] ] [%clk 0:00:40]} Qd5 {[%emt 0:04:15] ] [%clk 0:01:59]} 28. Rc3 {[%emt 0:05:12] [%clk 0:04.45] % [%clk 0:00:40]} Rbb8 {[%emt 0:02:19] % [%clk 0:01:59]} 29. Ng5 {[%emt 0:06:18]} Qf5 {[%emt 0:04:28]} 30. Rcc2 {[%emt 0:00:30]} Re8 {[%emt 0:00:30]} 31. Qe4 {[%emt 0:00:30]} h6 {[%emt 0:00:30]} 32. Qxf5 {[%emt 0:00:30]} exf5 {[%emt 0:00:30]} 33. Nf3 {[%emt 0:00:30]} Bf6 {[%emt 0:00:30]} 34. Rxc5 {[%emt 0:00:30]} Bxb2 {[%emt 0:00:30]} 35. a4 {[%emt 0:00:30]} Re4 {[%emt 0:00:30]} 36. Rxf5 {[%emt 0:00:30]} Rxa4 {[%emt 0:00:30]} 37. g3 {[%emt 0:00:30]} Ra3 {[%emt 0:00:30]} 38. Kg2 {[%emt 0:00:30]} Bf6 {[%emt 0:00:30]} 39. g4 {[%emt 0:00:30]} Rbb3 {[%emt 0:00:30]} 40. Rf2 {[%emt 0:00:30]} Bd8 {[%emt 0:00:39]} 41. Kg3 {[%emt 0:00:30]} Bh4+ {[%emt 0:00:30]} 42. Kxh4 {[%emt 0:00:30]} Rxf3 {[%emt 0:00:35]} 43. Rxf3 {[%emt 0:00:30]} Rxf3 {[%emt 0:00:33]} 44. Kh5 {[%emt 0:00:30]} Kh7 {[%emt 0:00:52]} 45. g5 {[%emt 0:00:30]} hxg5 {[%emt 0:00:25]} 46. Kxg5 {[%emt 0:00:19]} 1/2-1/2

[Event "5th Cesme Open 2017"]
[Site "Cesme"]
[Date "2017.06.18"]
[Round "9.10"]
[White "Grigoriev, Armen"]
[Black "Arat, Ufuk Sezen"]
[Result "0-1"]
[ECO "A20"]
[WhiteElo "2105"]
[BlackElo "2398"]
[Annotator "NA"]
[PlyCount "85"]
[EventType "swiss"]
[EventCountry "TUR"]
[SourceTitle "playchess.com"]
[Source "ChessBase"]
[SourceQuality "1"]
[TimeControl "5400+30"]

{[%evp 8,84,20,17,7,37,25,3,4,5,7,-13,0,-18,0,-38,-39,-22,-21,-44,-16,-34,-9,-47,-39,-37,-29,-34,15,12,23,18,31,38,63,64,49,42,124,150,157,0,0,0,-76,0,0,-23,-72,32767,32767,32767,32767,32767,32767,32767,32767,32767,32767,-247,32767,32767,32767,32767,32767,32767,32767,32767,32767,32767,32767,32767,32767,32767,-825,-704,32767,-29993,-29994]} 1. c4 {[%emt 0:00:30] ]]%][%} e5 {[%emt 0:23:00] ]]%][%} 2. Nf3 {[%emt 0:00:30] ]]%][%} Nc6 {[%emt 0:00:00] ]%]][%} 3. d4 {[%emt 0:00:00] ]]%][%} e4 {[%emt 0:04:00] ]]%][% A20: English Opening: 1...e5} (3... d6 4. Nc3 g6 5. e3 Bg7 6. Be2 exd4 7. Nxd4 Nxd4 8. exd4 Ne7 9. O-O O-O 10. Re1 Nf5 11. d5 Nd4 12. Bd3 Bd7 13. Ne2 Qh4 {0-1 (46) Rakhmanov,A (2667)-Andreikin,D (2737) Tallinn 2016}) 4. Nfd2 {[%emt 0:00:00] ]]%][%} Nxd4 {[%emt 0:04:30] ]]%]]%} 5. Nxe4 {[%emt 0:00:30] ]]%]]%} Ne6 {[%emt 0:00:30] ]]%]]%} 6. Nbc3 {[%emt 0:00:30] ]%%%]%} g6 $146 {[%emt 0:03:30] ]]%%]%} ({Predecessor:} 6... Be7 7. g3 Nf6 8. Bg2 O-O 9. O-O d6 10. f4 Nxe4 11. Nxe4 {½-½ (57) Arnstam,K-Lundin,E Gothenburg 1964}) 7. e3 {[%emt 0:02:30] ]]%%]%} Bg7 {[%emt 0:03:30] ]]%%%%} 8. Bd2 {[%emt 0:03:30] ]]%%%%} d6 {[%emt 0:00:30] ]]%%%} (8... f5 $5 9. Ng3 $8 Ne7 $11) 9. Be2 {[%emt 0:00:00] ]]%%%%} f5 {[%emt 0:06:30] ]]%%%%} 10. Ng3 {[%emt 0:00:00] ]]%%%} Nf6 {[%emt 0:00:00] ]]%%%%} 11. Rc1 {[%emt 0:01:30] ]]%%%%} h5 {[%emt 0:01:00] ]]%%%} 12. h3 {[%emt 0:00:30] ]]]%%%} O-O {[%emt 0:04:30] ]]]]%%} 13. Qc2 {[%emt 0:11:30] ]]]]%} a5 {[%emt 0:02:30] ]]]]]%} 14. Rd1 {[%emt 0:08:30] ]]]]]%} c6 {[%emt 0:06:30] [%clk 0:37]]615[} 15. Bc1 {[%emt 0:09:30] % [%clk 0:58:0] %%]} Nc5 {[%emt 0:03:30] % [%clk 0:10:53]} 16. Bd3 {[%emt 0:10:30] % [%clk 0:11:13]]} Nfd7 {[%emt 0:04:30] [%clk 0:30] ] [%clk 0:10:53]1} 17. Na4 {[%emt 0:06:30] % [%clk 0:42:0]] [%clk 0:11.01]1} Ne6 {[%emt 0:05:30] [%clk 0:10.53] [%} 18. O-O {[%emt 0:02:30] [%clk 0:11.01]} Ne5 {[%emt 0:02:30] [%clk 0:10.53]} 19. b3 {[%emt 0:04:30] [%clk 0:11.01]]} f4 {[%emt 0:04:21] ccl [%clk 0:10:53] 01} 20. exf4 {[%emt 0:07:30] ]] [%clk 0:11:01] 35} Nd4 {[%emt 0:00:01] ccl [%clk 0:10:53] 01 [#]} 21. Qb1 $1 {[%emt 0:00:30] 8] [%clk 0:11:01] 35} Nef3+ $1 {[%emt 0:01:43] [%clk 0:10.53]} 22. gxf3 {[%emt 0:01:30] 2] [%clk 0:11:01]} Bxh3 {[%emt 0:02:52] [%clk 0:10.53] [#]} (22... Nxf3+ $14 23. Kg2 Nh4+ 24. Kh1 Bxh3 25. Bxg6 b5) 23. Be4 $1 {[%emt 0:02:30] ]3 [%clk 0:11:01]} (23. Bxg6 {leads to mate.} Nxf3+ 24. Kh1 Qh4 25. Bf7+ Rxf7 26. Qh7+ Kxh7 27. Nf5 Bxf5+ 28. Kg2 Qh3#) 23... h4 {[%emt 0:01:16] [%clk 0:10.53] [#]} 24. Rfe1 {[%emt 0:01:30] 7] [%clk 0:11:01]} ({Better is} 24. Kh2 $1 $16 {[%cal Rh2h3]} Bxf1 25. Nxf1) 24... hxg3 {[%emt 0:03:11] ] [%clk 0:10:53]} 25. fxg3 {[%emt 0:00:00] 6 [%clk 0:23:0]] [%clk 0:11.01]} d5 {[%emt 0:00:25] cl [%clk 0:10:53] :0} 26. Kh2 {[%emt 0:06:00] ]1 [%clk 0:11:01] 5} dxe4 {[%emt 0:00:47] cc [%clk 0:10:53] :0} 27. Kxh3 {[%emt 0:00:00] 4 [%clk 0:10:55] .]} exf3 {[%emt 0:01:36] c [%clk 0:11:18] [ [%clk 0:10:53] cc} 28. g4 {[%emt 0:10:07] c} Kf7 {[%emt 0:00:55]} 29. Kg3 {[%emt 0:02:49]} Rh8 {[%emt 0:00:20] ]} 30. Rh1 {[%emt 0:00:18] ]} Bf6 {[%emt 0:00:28] [%clk 0:08.59]} 31. g5 {[%emt 0:03:59] [} Bg7 {[%emt 0:02:36] [} 32. Be3 {[%emt 0:00:01] [%clk 0:01.34] [%clk 0:06.47]} Rxh1 {[%emt 0:05:00]} 33. Rxh1 {[%emt 0:04:42]} Nf5+ {[%emt 0:00:30]} 34. Kxf3 {[%emt 0:00:30]} Nxe3 {[%emt 0:00:30]} 35. Kxe3 {[%emt 0:00:30]} Qd4+ {[%emt 0:00:30]} 36. Kf3 {[%emt 0:00:30]} Re8 {[%emt 0:00:30]} 37. Re1 {[%emt 0:00:30]} Rh8 {[%emt 0:00:30]} 38. Qe4 {[%emt 0:00:30]} Qd7 {[%emt 0:00:30]} 39. f5 {[%emt 0:00:30]} gxf5 {[%emt 0:00:30]} 40. Qe2 {[%emt 0:00:30] [#]} f4 $1 {[%emt 0:00:30]} 41. g6+ {[%emt 0:00:30]} Kf8 {[%emt 0:00:30]} 42. Ke4 {[%emt 0:00:30]} Rh3 {[%emt 0:00:32]} 43. Nc5 {[%emt 0:02:04]} 0-1